[Event "Susha Chess Blitz Women 2022"]
[Site "Shusha"]
[Date "2022.09.24"]
[Round "16"]
[White "Mammadova, Gulnar"]
[Black "Beydullayeva, Govhar"]
[Result "1-0"]
[ECO "B23"]
[WhiteElo "2382"]
[BlackElo "2346"]
[Annotator "TA"]
[PlyCount "94"]
[EventDate "2022.09.24"]
[EventType "tourn"]
[EventCountry "AZE"]
[SourceTitle "playchess.com"]
[Source "ChessBase"]
[SourceQuality "1"]
[TimeControl "180+2"]

{[%evp 20,94,11,-18,0,-51,-21,-60,13,-113,-136,-174,-168,-206,-22,-21,-31,-30,-18,-61,-66,-78,-49,-119,0,-39,0,0,0,0,66,0,161,0,14,8,15,-30,21,16,2,7,4,8,12,19,40,0,0,0,0,0,0,0,23,8,34,0,0,0,0,0,0,0,24,24,41,33,40,40,72,66,92,95,150,48,989]} 1. e4 c5 2. Nc3 {[%emt 0:00:02]} d6 {[%emt 0:00:01]} 3. f4 {[%emt 0:00:01]} g6 {[%emt 0:00:03]} 4. Nf3 {[%emt 0:00:15]} Bg7 {[%emt 0:00:00]} 5. d3 {[%emt 0:00:05]} Nc6 {[%emt 0:00:02]} 6. g3 {[%emt 0:00:01]} e6 {[%emt 0:00:00]} 7. Bg2 {[%emt 0:00:01]} Nge7 {[%emt 0:00:03]} 8. O-O {[%emt 0:00:01]} Rb8 {[%emt 0:00:02]} 9. Be3 {[%emt 0:00:02]} Nd4 {[%emt 0:00:01] 9...Nd4 scores better than 9...0-0.} 10. Bf2 {[%emt 0:00:08]} O-O {[%emt 0:00:11]} 11. Qd2 {[%emt 0:00:11]} b5 {[%emt 0:00:00][%cal Bb7b5,Bb5b4][%mdl 32] [#] B25: Closed Sicilian: 3 g3, lines without early Be3.} 12. g4 $146 {[%emt 0:00:08]} (12. Nxd4 $11 cxd4 13. Ne2) ({Predecessor:} 12. a3 a5 13. Nxd4 cxd4 14. Ne2 Qb6 15. c3 dxc3 16. bxc3 Qc7 17. Rab1 Ba6 18. Rfc1 Rfc8 19. Qe3 {0-1 (33) Kovsharev,V (2282)-Pushin,V (2391) Nabereznye Chelny 2010}) 12... f5 {[%emt 0:00:05] With the idea ...b4.} 13. gxf5 {[%emt 0:00:01]} gxf5 {[%emt 0:00:03]} (13... b4 $15 14. Ne2 Nxf3+ 15. Bxf3 exf5) 14. Bh4 {[%emt 0:00:07]} (14. Nxd4 $11 {keeps the balance.} cxd4 15. Ne2) 14... b4 $17 {[%emt 0:00:18]} 15. Nd1 {[%emt 0:00:01]} fxe4 {[%emt 0:00:09]} 16. dxe4 {[%emt 0:00:04] [#]} Ba6 $2 {[%emt 0:00:24]} (16... Rxf4 $1 $19 {[%mdl 512] ...Nxf3+ is the strong threat.} 17. Nxd4 (17. Bxe7 $2 Qxe7 18. c3 Nxf3+ 19. Rxf3 Rxf3 $19) (17. Bg5 Rxe4) 17... Rxh4) 17. Rf2 $11 {[%emt 0:00:01]} Nxf3+ {[%emt 0:00:02]} 18. Rxf3 {[%emt 0:00:03]} Qc7 {[%emt 0:00:09]} 19. Rb1 {[%emt 0:00:12]} Ng6 {[%emt 0:00:11]} 20. Bg3 {[%emt 0:00:01]} Bb7 {[%emt 0:00:11]} 21. Rf1 {[%emt 0:00:04] [#]} (21. Nf2 $15) 21... c4 {[%emt 0:00:22]} (21... Bh6 $1 $17 {White must now prevent ...Kh8.} 22. Qe2 Qe7) 22. Ne3 {[%emt 0:00:08][%cal Bd1e3,Be3g4,Bg4e3,Be3f5][%mdl 32]} (22. f5 $5 {[%cal Rf5g6]} Ne5 23. Ne3 $11) 22... Qc5 {[%emt 0:00:03]} 23. Kh1 {[%emt 0:00:15]} c3 {[%emt 0:00:01]} 24. bxc3 {[%emt 0:00:01]} Qxc3 {[%emt 0:00:44]} (24... Bxc3 $11 25. Qd3 Bc6) 25. Qe2 {[%emt 0:00:03]} ({Better is} 25. Qxc3 $14 Bxc3 26. Rbd1 (26. f5 Ne5 $14)) 25... Rbc8 $2 {[%emt 0:00:20]} (25... Bc6 $1 $11 {and Black stays safe.} 26. Qc4 Qxc4 27. Nxc4 Bb5 28. Rxb4 Ba6) 26. Rbd1 $2 {[%emt 0:00:16]} (26. f5 $18 exf5 27. Rb3 (27. Bxd6 f4 $16) (27. exf5 Bxg2+ 28. Kxg2 Ne5 $11) (27. Nxf5 Qxc2 28. Qg4 Ba6 $16)) 26... Bd4 {[%emt 0:00:09]} 27. Ng4 {[%emt 0:00:15] Strongly threatening f5.} Qc4 {[%emt 0:00:03]} 28. Qd2 {[%emt 0:00:14]} Bg7 {[%emt 0:00:04]} (28... Bc3 $142 29. Qe3 Bg7) 29. f5 {[%emt 0:00:13]} exf5 $1 {[%emt 0:00:01]} ({Less strong is} 29... Bxe4 30. Ne3 Bxg2+ 31. Qxg2 $16) 30. Ne3 {[%emt 0:00:01]} Qc3 {[%emt 0:00:06]} 31. Nxf5 {[%emt 0:00:05]} Qxd2 {[%emt 0:00:07]} 32. Rxd2 {[%emt 0:00:00]} Be5 {[%emt 0:00:04]} 33. Bxe5 {[%emt 0:00:04]} (33. Rb1 $5 {[%cal Rf5d6]}) 33... dxe5 {[%emt 0:00:01]} 34. Rd7 {[%emt 0:00:06]} Ba6 35. Rf2 {[%emt 0:00:13]} Kh8 {[%emt 0:00:05]} 36. Rxa7 {[%emt 0:00:02]} Bc4 {[%emt 0:00:03]} 37. Rd2 {[%emt 0:00:05]} Rcd8 {[%emt 0:00:03]} 38. Rdd7 {[%emt 0:00:13]} Rxd7 {[%emt 0:00:02]} 39. Rxd7 {[%emt 0:00:01]} Bxa2 {[%emt 0:00:02]} 40. Rb7 {[%emt 0:00:02][%cal Bd7b7,Bb7b4,Bb4b8][%mdl 32]} Rc8 {[%emt 0:00:04]} 41. Rxb4 {[%emt 0:00:01]} Rxc2 {[%emt 0:00:02] Threatens to win with ...Rc1+.} 42. Rb8+ {[%emt 0:00:01]} Bg8 {[%emt 0:00:01] Hoping for ...Rc1+.} 43. Kg1 {[%emt 0:00:08]} Rc1+ {[%emt 0:00:01]} 44. Kf2 {[%emt 0:00:01]} Rc2+ {[%emt 0:00:00]} 45. Kg3 {[%emt 0:00:06]} Nf4 {[%emt 0:00:02]} 46. Bf3 {[%emt 0:00:01]} Rc7 {[%emt 0:00:04] Prevents Ne7.} (46... Rc1 $142) 47. Bd1 {[%emt 0:00:09]} (47. Nh6 $16 {[%csl Gh6][%cal Rb8g8]} Rg7+ 48. Bg4) 47... Nd3 $2 {[%emt 0:00:00][%mdl 8192] Weighted Error Value: White=0.32/Black=0.29 (precise)} (47... Rc1 $14) 1-0

[Event "Susha Chess Blitz Women 2022"]
[Site "Shusha"]
[Date "2022.09.24"]
[Round "16"]
[White "Ozturk Orenli, Kubra"]
[Black "Efroimski, Marsel"]
[Result "1/2-1/2"]
[ECO "A40"]
[WhiteElo "2319"]
[BlackElo "2462"]
[Annotator "TA"]
[PlyCount "115"]
[EventDate "2022.09.24"]
[EventType "tourn"]
[EventCountry "AZE"]
[SourceTitle "playchess.com"]
[Source "ChessBase"]
[SourceQuality "1"]
[TimeControl "180+2"]

{[%evp 23,115,20,25,0,10,0,0,0,0,-17,-6,-9,30,25,23,39,23,0,0,-128,-129,-115,-119,-179,-139,-139,-139,-139,-139,-138,-138,-119,0,0,0,-6,0,0,0,0,14,14,14,14,15,15,27,27,35,34,34,27,27,27,27,27,27,18,18,18,27,18,27,27,27,26,26,26,26,26,26,26,47,47,47,47,47,0,47,47,47,47,47,47,47,47,47,37,37,37,37,44,44,34]} 1. d4 {[%emt 0:00:01]} e6 {[%emt 0:00:00]} 2. Nf3 {[%emt 0:00:03]} c5 {[%emt 0:00:01]} 3. g3 {[%emt 0:00:04]} Nf6 {[%emt 0:00:05]} 4. Bg2 {[%emt 0:00:01]} cxd4 {[%emt 0:00:03]} 5. Nxd4 {[%emt 0:00:01]} d5 {[%emt 0:00:01]} 6. O-O {[%emt 0:00:07]} e5 {[%emt 0:00:01]} 7. Nf3 {[%emt 0:00:01]} Nc6 {[%emt 0:00:01]} 8. c4 {[%emt 0:00:03]} d4 {[%emt 0:00:01]} 9. e3 {[%emt 0:00:00]} Be7 {[%emt 0:00:04]} 10. exd4 {[%emt 0:00:03]} exd4 {[%emt 0:00:01]} 11. Bf4 {[%emt 0:00:20]} O-O {[%emt 0:00:02]} 12. Ne5 {[%emt 0:00:05]} Qb6 {[%emt 0:00:01]} 13. Qb3 {[%emt 0:00:17] 13.Re1 is the modern continuation. E01: Catalan: Early deviations.} (13. Re1 $5 {[%cal Re5c6]} Nxe5 14. Bxe5 $11) 13... Na5 {[%emt 0:01:05]} 14. Qxb6 {[%emt 0:00:12]} axb6 {[%emt 0:00:01]} 15. Nd2 {[%emt 0:00:02] Inhibits Nb3. The position is equal.} Nh5 {[%emt 0:00:01]} 16. Nb3 {[%emt 0:00:28]} Nxf4 {[%emt 0:00:09]} 17. gxf4 {[%emt 0:00:01]} Be6 {[%emt 0:00:41]} 18. Nxd4 {[%emt 0:00:16]} Bxc4 {[%emt 0:00:07] [#]} 19. Rfc1 $146 {[%emt 0:00:24]} ({Predecessor:} 19. Rfd1 Rfd8 20. Bxb7 Nxb7 21. Nxc4 Bf6 22. Nc6 Rxd1+ 23. Rxd1 Rxa2 24. b4 Rc2 25. N4e5 Bxe5 26. Nxe5 {½-½ (88) Gareyev,T (2610)-Molner,M (2464) Philadelphia 2011}) 19... Be6 {[%emt 0:00:48]} 20. f5 {[%emt 0:00:05]} Bc8 {[%emt 0:00:04]} 21. b4 {[%emt 0:00:51]} (21. Bd5 $11) 21... Bxb4 $17 {[%emt 0:00:03][%cal Be7b4,Bb4c5,Bc5d4][%mdl 32]} 22. Bd5 Bc5 {[%emt 0:00:06]} 23. Nb3 {[%emt 0:00:14]} (23. Rd1 $17) 23... Nxb3 {[%emt 0:00:03]} ({Weaker is} 23... Bxf5 24. Nxc5 bxc5 25. Rxc5 $15) 24. axb3 {[%emt 0:00:01]} Rxa1 {[%emt 0:00:03]} 25. Rxa1 {[%emt 0:00:01]} Bd4 {[%emt 0:00:03]} ({Not} 25... Bxf5 26. Nxf7 Rxf7 27. Ra8+ Bf8 28. Rb8 $17) 26. Re1 {[%emt 0:00:01]} Bxf5 {[%emt 0:00:09]} 27. Nxf7 {[%emt 0:00:03] [#] Strongly threatening Nh6+.} Bg6 {[%emt 0:00:09] A strong pair of Bishops.} (27... Bxf2+ $1 $17 {[%mdl 512]} 28. Kxf2 Bg6) 28. Ne5+ $11 {[%emt 0:00:07]} Kh8 {[%emt 0:00:01]} 29. Nxg6+ {[%emt 0:00:01]} hxg6 {[%emt 0:00:01][%mdl 4096] Endgame KRB-KRB} 30. Re2 {[%emt 0:00:02]} Bf6 {[%emt 0:00:04]} 31. Re3 {[%emt 0:00:03] Intending Rh3+ and mate.} Bg5 {[%emt 0:00:01]} 32. Rh3+ {[%emt 0:00:02]} Bh6 {[%emt 0:00:01]} 33. Bxb7 {[%emt 0:00:01]} Rd8 {[%emt 0:00:01]} 34. Be4 {[%emt 0:00:01]} Kg8 {[%emt 0:00:02]} 35. Bxg6 {[%emt 0:00:03]} Kf8 {[%emt 0:00:01]} 36. Rf3+ {[%emt 0:00:02]} Ke7 {[%emt 0:00:01]} 37. Kg2 {[%emt 0:00:03]} Ke6 {[%emt 0:00:02]} 38. Bd3 {[%emt 0:00:03]} Ke5 {[%emt 0:00:01]} 39. Bc4 {[%emt 0:00:02]} Rd4 {[%emt 0:00:01]} 40. Rd3 {[%emt 0:00:02]} Rxd3 {[%emt 0:00:02]} 41. Bxd3 {[%emt 0:00:01] KB-KB} Kd4 {[%emt 0:00:01]} 42. Bc4 {[%emt 0:00:01]} Kc3 {[%emt 0:00:02]} 43. Kf3 {[%emt 0:00:01]} b5 {[%emt 0:00:01]} 44. Bg8 {[%emt 0:00:01]} Kd4 {[%emt 0:00:01]} 45. Kg4 {[%emt 0:00:02]} Ke5 {[%emt 0:00:01]} 46. h4 {[%emt 0:00:01]} b4 {[%emt 0:00:01]} 47. Bc4 {[%emt 0:00:02]} Kf6 {[%emt 0:00:02]} 48. f4 {[%emt 0:00:01]} g6 {[%emt 0:00:03]} 49. Bd5 {[%emt 0:00:02]} Bf8 {[%emt 0:00:02]} 50. Bc4 {[%emt 0:00:02]} (50. Be4 $14) 50... Bg7 {[%emt 0:00:01]} (50... Bh6 $11 {feels stronger.}) 51. Bd3 {[%emt 0:00:02] White is slightly better.} Bf8 {[%emt 0:00:01]} 52. f5 {[%emt 0:00:02]} gxf5+ {[%emt 0:00:01]} 53. Bxf5 {[%emt 0:00:01]} Kg7 {[%emt 0:00:01]} 54. Be6 {[%emt 0:00:01]} Be7 {[%emt 0:00:01]} 55. h5 {[%emt 0:00:01]} Kh6 {[%emt 0:00:01]} 56. Bf7 {[%emt 0:00:01]} Bf6 {[%emt 0:00:01]} 57. Kf5 {[%emt 0:00:01]} Bc3 {[%emt 0:00:00]} 58. Ke4 {Weighted Error Value: White=0.13 (very precise) /Black=0.08 (flawless)} 1/2-1/2

[Event "Susha Chess Blitz Women 2022"]
[Site "Shusha"]
[Date "2022.09.24"]
[Round "17"]
[White "Dzagnidze, Nana"]
[Black "Balajayeva, Khanim"]
[Result "1-0"]
[ECO "A22"]
[WhiteElo "2526"]
[BlackElo "2379"]
[Annotator "TA"]
[PlyCount "121"]
[EventDate "2022.09.24"]
[EventType "tourn"]
[EventCountry "AZE"]
[SourceTitle "playchess.com"]
[Source "ChessBase"]
[SourceQuality "1"]
[TimeControl "180+2"]

{[%evp 9,121,-24,68,-4,-4,-14,45,-28,-6,-31,-10,-27,2,0,28,0,0,0,11,-4,-12,-19,0,-22,1,-31,-44,-105,-54,-52,0,8,18,0,0,0,0,0,20,20,20,17,62,-6,-8,-39,-25,-26,-14,-21,0,0,0,-43,0,-18,0,0,0,-20,-20,-134,29,31,154,0,337,313,281,348,354,354,346,338,344,334,318,296,375,355,364,358,437,404,397,396,381,345,549,541,534,528,647,638,698,658,4910,697,697,697,685,651,7317,12575,5043,913,907,898,872,810,896,867,777,744]} 1. c4 {[%emt 0:00:01]} e5 {[%emt 0:00:00][%cal Be7e5,Be5e4][%mdl 32]} 2. Nc3 {[%emt 0:00:02]} Nf6 {[%emt 0:00:01]} 3. g3 {[%emt 0:00:02]} c6 {[%emt 0:00:01]} 4. d4 {[%emt 0:00:04]} e4 {[%emt 0:00:01]} 5. d5 {[%emt 0:00:11]} cxd5 {[%emt 0:00:14]} (5... Bb4 $11) 6. cxd5 {[%emt 0:00:05] A23: English Opening: 1...e5 2 Nc3 Nf6 3 g3 c6.} (6. Nxd5 $14 h6 7. Bg2) 6... Bb4 $11 {[%emt 0:00:01]} 7. Bg2 {[%emt 0:00:04] [#]} Qe7 $146 {[%emt 0:00:08]} (7... O-O $11) ({Predecessor:} 7... O-O 8. Nh3 Bxc3+ 9. bxc3 d6 10. O-O Nbd7 11. Nf4 Re8 12. h4 b6 13. Ba3 Qe7 {1-0 (82) Zubritskiy,A (2442)-Kollars,D (2592) Chess.com INT 2020}) 8. Be3 {[%emt 0:00:44]} (8. Bg5 $14) 8... O-O {[%emt 0:00:13]} (8... Bxc3+ $5 9. bxc3 d6 $11) 9. Nh3 {[%emt 0:00:15][%cal Od5d6]} d6 {[%emt 0:00:08]} 10. O-O {[%emt 0:00:06]} Nbd7 {[%emt 0:00:03]} 11. Bd4 {[%emt 0:00:07]} Re8 {[%emt 0:00:14]} 12. Nf4 {[%emt 0:00:09]} (12. Nb5 $5 {[%cal Rb5c7]} Ba5 13. Nxa7 $14) 12... b6 {[%emt 0:00:23]} 13. h4 {[%emt 0:00:20]} Bb7 {[%emt 0:00:02]} 14. a3 {[%emt 0:00:02]} Bxc3 {[%emt 0:00:18]} 15. Bxc3 {[%emt 0:00:02]} Rac8 {[%emt 0:00:04]} 16. Rc1 {[%emt 0:00:03]} h6 {[%emt 0:00:02]} 17. e3 {[%emt 0:00:08]} Ne5 {[%emt 0:00:04]} 18. b3 {[%emt 0:00:43]} (18. Qa4 $15) 18... Ba6 {[%emt 0:00:01]} (18... g5 $1 $17 {[%cal Rg5f4]} 19. hxg5 hxg5 20. Bxe5 Rxc1 21. Qxc1 dxe5) 19. Re1 $15 {[%emt 0:00:03]} Nd3 {[%emt 0:00:02]} ({Better is} 19... Bb5 $15) 20. Nxd3 $11 {[%emt 0:00:03]} Bxd3 {[%emt 0:00:01]} 21. Bd4 {[%emt 0:00:12]} Rxc1 {[%emt 0:00:24]} 22. Qxc1 {[%emt 0:00:01]} Nxd5 {[%emt 0:00:01]} 23. Qc6 {[%emt 0:00:06]} Nf6 {[%emt 0:00:17]} 24. Bh3 {[%emt 0:00:01][%mdl 1024] White has compensation.} Rd8 {[%emt 0:00:23]} 25. Rc1 {[%emt 0:00:02]} d5 {[%emt 0:00:18]} 26. b4 {[%emt 0:00:01]} (26. Qc7 $14 Qxc7 27. Rxc7) 26... Bc4 {[%emt 0:00:07]} 27. Rd1 {[%emt 0:00:06]} Qd6 {[%emt 0:00:05]} 28. Qb7 {[%emt 0:00:02]} Qb8 {[%emt 0:00:06]} 29. Qc6 {[%emt 0:00:07]} Qd6 {[%emt 0:00:03]} 30. Qb7 {[%emt 0:00:04]} Qb8 {[%emt 0:00:02]} 31. Qc6 {[%emt 0:00:02]} Qd6 {[%emt 0:00:09]} 32. b5 {[%emt 0:00:01]} Ne8 {[%emt 0:00:06]} 33. a4 {[%emt 0:00:03]} Qe7 {[%emt 0:00:02]} 34. Rc1 {[%emt 0:00:02]} Nd6 35. Bb2 {[#]} (35. Bc3 $11 {keeps the balance.}) 35... f6 $2 {[%emt 0:00:03]} (35... Nb7 $1 $17 {[%cal Rb7a5] Strongly threatening ...Na5.} 36. Be5 Qxe5 37. Qxb7 Qb2) 36. Ba3 {[%emt 0:00:04]} Kf7 {[#] White now steadily converts the win.} (36... Qe5 $14) 37. Rd1 $2 {[%emt 0:00:03] White is more active.} ({Only move:} 37. a5 $1 $16 {[%cal Ra5b6]}) 37... Qb7 {[%emt 0:00:03][%mdl 8192]} 38. Bxd6 $18 {[%emt 0:00:02] A strong pair of Bishops.} Qxc6 {[%emt 0:00:01]} 39. bxc6 {[%emt 0:00:01]} Rxd6 {[%emt 0:00:00][%mdl 4096] Endgame KRB-KRB} 40. c7 {[%emt 0:00:01]} Ba6 {[%emt 0:00:02]} 41. c8=Q {[%emt 0:00:01] Inhibits Rc6.} Bxc8 {[%emt 0:00:01]} 42. Bxc8 {[%emt 0:00:01] KRB-KR} Ke7 {[%emt 0:00:03]} 43. Kf1 {[%emt 0:00:02]} Rd8 {[%emt 0:00:04]} 44. Bb7 {[%emt 0:00:02]} Ke6 {[%emt 0:00:00]} 45. Rc1 {[%emt 0:00:02]} Rb8 {[%emt 0:00:03]} 46. Ba6 {[%emt 0:00:01]} Kd6 {[%emt 0:00:01]} 47. Ke2 {[%emt 0:00:02]} Re8 {[%emt 0:00:05]} 48. Bb5 {[%emt 0:00:01]} Rd8 {[%emt 0:00:01]} (48... Re7 $142 49. Kd2 Ke6) 49. Rc6+ {[%emt 0:00:01] White is clearly winning.} Ke5 {[%emt 0:00:03]} 50. Rc7 {[%emt 0:00:01][%csl LRa7,LRg7]} d4 {[%emt 0:00:01]} 51. exd4+ {[%emt 0:00:04]} Rxd4 52. Re7+ {[%emt 0:00:03]} Kf5 {[%emt 0:00:03]} 53. Rxa7 {[%emt 0:00:01]} (53. Bd7+ $142 Rxd7 54. Rxd7) 53... g5 {[%emt 0:00:01]} 54. hxg5 {[%emt 0:00:02]} hxg5 {[%emt 0:00:01]} 55. Rb7 {[%emt 0:00:02]} Rd6 {[%emt 0:00:00]} 56. Rd7 {[%emt 0:00:02]} Re6 {[%emt 0:00:03]} 57. Ke3 {[%emt 0:00:02]} (57. Rd5+ $142 Kg6 58. Ke3) 57... Kg6 {[%emt 0:00:03]} 58. Rd4 {[%emt 0:00:04]} f5 {[%emt 0:00:00]} 59. Bd7 {[%emt 0:00:02]} Rf6 {[%emt 0:00:03]} 60. Rd5 {[%emt 0:00:01][%cal Od7f5] Threatens to win with Bxf5+!} g4 {[%emt 0:00:08]} 61. Kf4 {[%emt 0:00:02] Weighted Error Value: White=0.36/Black=0.45} 1-0

[Event "Susha Chess Blitz Women 2022"]
[Site "Shusha"]
[Date "2022.09.24"]
[Round "17"]
[White "Mammadzada, Gunay"]
[Black "Arabidze, Meri"]
[Result "0-1"]
[ECO "B47"]
[WhiteElo "2473"]
[BlackElo "2422"]
[Annotator "TA"]
[PlyCount "102"]
[EventDate "2022.09.24"]
[EventType "tourn"]
[EventCountry "AZE"]
[SourceTitle "playchess.com"]
[Source "ChessBase"]
[SourceQuality "1"]
[TimeControl "180+2"]

{[%evp 11,102,34,40,13,25,30,25,11,13,25,34,33,35,38,60,53,41,50,52,55,57,54,66,58,66,70,74,81,132,29,122,115,125,117,119,106,150,94,243,246,239,193,318,320,306,322,319,285,404,196,191,179,233,20,27,27,32,14,64,0,0,-8,0,0,0,-8,8,8,26,16,16,15,12,-425,-395,-368,206,-425,-412,-535,1195,1158,29985,29962,29984,29985,29985,29984,29986,0,0,-29991,-29992]} 1. e4 c5 2. Nf3 {[%emt 0:00:02]} e6 {[%emt 0:00:00]} 3. d4 {[%emt 0:00:01]} cxd4 {[%emt 0:00:01]} 4. Nxd4 {[%emt 0:00:01]} Nc6 {[%emt 0:00:01]} 5. Nc3 {[%emt 0:00:01]} Qc7 {[%emt 0:00:00]} 6. Be2 a6 7. Nxc6 {[%emt 0:00:03] B47: Sicilian: Taimanov: 5 Nc3 Qc7 6 f4, 6 g3 and 6 Be2.} bxc6 {[%emt 0:00:03]} 8. Qd3 {[%emt 0:00:03] is currently scoring better than 8.0-0.} d5 {[%emt 0:00:06]} 9. Qg3 {[%emt 0:00:02] White has an edge.} Qxg3 {[%emt 0:00:04]} 10. hxg3 {[%emt 0:00:01][%cal Bh2g3,Bg3g4][%mdl 32]} Nf6 {[%emt 0:00:04]} 11. g4 {[%emt 0:00:03]} Bb4 {[%emt 0:00:13]} 12. Bd2 {[%emt 0:01:02]} d4 {[%emt 0:00:01] [#]} 13. g5 $146 {[%emt 0:00:23]} ({Predecessor:} 13. e5 Nd7 14. Ne4 Bxd2+ 15. Nxd2 c5 16. Nc4 Ke7 17. Bf3 Rb8 18. O-O-O Nb6 19. Na5 {1-0 (38) Karjakin,S (2752)-Cori,J (2652) Chess.com INT 2020}) 13... dxc3 {[%emt 0:00:08]} 14. bxc3 {[%emt 0:00:01]} Be7 {[%emt 0:00:18]} 15. gxf6 {[%emt 0:00:02]} Bxf6 {[%emt 0:00:01]} 16. Rb1 {[%emt 0:00:06]} O-O {[%emt 0:00:10]} 17. f4 {[%emt 0:00:02][%cal Bf2f4,Bf4f5][%mdl 32]} e5 {[%emt 0:00:27]} 18. f5 {[%emt 0:00:04]} a5 {[%emt 0:00:22]} 19. Be3 {[%emt 0:00:19]} Ba6 {[%emt 0:00:08]} ({Better is} 19... Bd7) 20. Rb6 {[%emt 0:00:03]} (20. Bxa6 $16 Rxa6 21. Ke2) 20... Bxe2 {[%emt 0:00:07]} (20... Rfb8 $1 $11 {keeps the balance.}) 21. Kxe2 $16 {[%emt 0:00:01]} Rfc8 {[%emt 0:00:09]} 22. Rd1 {[%emt 0:00:04]} Rab8 {[%emt 0:00:19]} 23. a4 {[%emt 0:00:01]} h5 {[%emt 0:00:11]} 24. Rd6 {[%emt 0:00:15]} (24. Rxb8 $142 Rxb8 25. Rd6) 24... c5 {[%emt 0:00:09]} (24... Rxb6 $16 {is a better defense.} 25. Bxb6 Kf8) 25. Rxb8 $18 Rxb8 26. Bxc5 {[%emt 0:00:19][%mdl 4096] Endgame KRB-KRB} Rb2 {[%emt 0:00:01]} (26... Rc8 $142) 27. Kd3 $1 {[%emt 0:00:02]} Ra2 {[%emt 0:00:01]} 28. Ra6 {[%emt 0:00:11]} Rxa4 {[%emt 0:00:01]} 29. Bb6 {[%emt 0:00:08]} Ra1 {[%emt 0:00:02]} (29... g6 {was called for.} 30. Rxa5 Rxa5 31. Bxa5 g5) 30. Rxa5 {[%emt 0:00:02]} (30. c4 $142) 30... Rd1+ {[%emt 0:00:05] [#]} 31. Ke2 $1 {[%emt 0:00:02]} Rc1 {[%emt 0:00:05]} (31... Rd6 {was necessary.}) 32. Kd2 $2 {[%emt 0:00:02]} (32. Ra8+ $18 Kh7 33. Ra2) 32... Bg5+ $11 {[%emt 0:00:01]} 33. Kd3 {[%emt 0:00:03]} Rd1+ {[%emt 0:00:06]} 34. Kc4 {[%emt 0:00:03]} Rd2 {[%emt 0:00:01]} (34... h4 $1 $11) 35. Rxe5 {[%emt 0:00:22]} (35. g3 $14) 35... Rxg2 {[%emt 0:00:02]} 36. Bd8 {[%emt 0:00:09]} f6 {[%emt 0:00:14]} (36... Bxd8 $5 37. Re8+ $8 Kh7 38. Rxd8 h4 $11) 37. Re8+ {[%emt 0:00:03]} Kh7 {[%emt 0:00:02] White must now prevent ...Bf4.} 38. e5 {[%emt 0:00:06]} h4 {[%emt 0:00:13]} 39. e6 {[%emt 0:00:02]} h3 {[%emt 0:00:07]} 40. Bc7 {[%emt 0:00:01] Rd8 is the strong threat.} h2 $1 {[%emt 0:00:05] [#]} ({Don't take} 40... Re2 41. Rd8 g6 42. Rd3 gxf5 43. Kd5 $16 (43. Rxh3+ Kg6 $18)) 41. Bxh2 {[%emt 0:00:03]} Rxh2 {[%emt 0:00:00] KRB-KR} 42. e7 $2 {[%emt 0:00:04][%mdl 8192]} (42. Kd5 $11 {and White stays safe.}) 42... Re2 $19 {[%emt 0:00:02]} 43. Kd5 {[%emt 0:00:01]} g6 $4 {[%emt 0:00:04][%mdl 8192] [#]} (43... Bc1 $19 {aiming for ...Ba3.} 44. Kc6 Ba3) 44. c4 $4 {[%emt 0:00:02][%mdl 8192]} (44. Kd6 $1 $18 {was the only winning move.}) 44... gxf5 {[%emt 0:00:03] Hoping for ...f4.} 45. c5 {[%emt 0:00:00][%cal Bc4c5,Bc5c6][%mdl 32]} f4 $4 {[%emt 0:00:05][%mdl 8192]} (45... Kg7 $19 46. c6 Bf4) 46. c6 $18 {[%emt 0:00:00] Intending c7 and mate.} Rd2+ {[%emt 0:00:01]} 47. Ke4 {[%emt 0:00:05]} Re2+ {[%emt 0:00:07]} 48. Kf3 {[%emt 0:00:04]} Re3+ {[%emt 0:00:02]} 49. Kg4 {[%emt 0:00:03]} f3 {[%emt 0:00:04]} 50. Kg3 $2 {[%emt 0:00:02]} (50. c7 {mates} Re4+ 51. Kxf3 Rf4+ 52. Kg3 f5 53. c8=Q Rg4+ 54. Kf3 Rf4+ 55. Ke2) 50... Bh4+ $1 $11 {[%emt 0:00:03]} 51. Kxh4 $2 {[%mdl 8192]} (51. Kf4 $11 f2 52. Kxe3) 51... f2 {A wild game.  Weighted Error Value: White=0.81/Black=0.46} 0-1